fUST/lending_fUST_20251012
["ID","MTS","AMOUNT","RATE_DAILY","PERIOD"]
[390922848,1760220684399,-500.0,0.000229,2]
[390922849,1760220684439,-500.0,0.000229,2]
[390922850,1760220684474,-483.35811188,0.000229,2]
[390922851,1760220684506,-488.67323713,0.000229,2]
[390922852,1760220684536,-518.2175301,0.000229,2]
[390922853,1760220684567,-500.0,0.000229,2]
[390922854,1760220684598,-500.0,0.000229,2]
[390922855,1760220686144,-500.0,0.000229,2]
[390922856,1760220686175,-566.64,0.000229,2]
[390922857,1760220686206,-500.0,0.000229,2]
[390922858,1760220686235,-417.75955966,0.000229,2]
[390922859,1760220686265,-500.0,0.000229,2]
[390922860,1760220686294,-500.0,0.000229,2]
[390922861,1760220686324,-500.0,0.000229,2]
[390922862,1760220686354,-500.0,0.000229,2]
[390922863,1760220686384,-590.57432477,0.000229,2]
[390922864,1760220686417,-350.06223114,0.000229,2]
[390922865,1760220688191,-149.93776886,0.000229,2]
[390922866,1760220688224,-500.0,0.000229,2]
[390922867,1760220688255,-500.0,0.000229,2]
[390922868,1760220688287,-500.0,0.000229,2]
[390922869,1760220688316,-500.0,0.000229,2]
[390922870,1760220688346,-500.0,0.000229,2]
[390922871,1760220688455,-500.0,0.000229,2]
[390922872,1760220688485,-500.0,0.000229,2]
[390922873,1760220688515,-500.0,0.000229,2]
[390922874,1760220688544,-500.0,0.000229,2]
[390922875,1760220688572,-200.13446228,0.00023001,2]
[390922876,1760220690344,-299.86553772,0.00023001,2]
[390922877,1760220690378,-500.0,0.00023001,2]
[390922878,1760220690413,-500.0,0.00023001,2]
[390922879,1760220691179,500.0,0.000229,2]
[390922880,1760220691537,323.60052601,0.000229,2]
[390922881,1760220692271,500.0,0.00030385,60]
[390922882,1760220693120,500.0,0.000229,2]
[390922883,1760220693338,500.0,0.000229,2]
[390922884,1760220693583,500.0,0.000229,2]
[390922885,1760220693810,441.68,0.000229,2]
[390922886,1760220694435,500.0,0.000229,2]
[390922887,1760220694665,500.0,0.000229,2]
[390922888,1760220694901,150.67621052,0.000229,2]
[390922889,1760220694931,500.0,0.000229,2]
[390922890,1760220695159,500.0,0.000229,2]
[390922891,1760220696997,500.0,0.000229,2]
[390922892,1760220697669,500.0,0.000229,2]
[390922893,1760220699489,500.0,0.00023001,2]
[390922894,1760220703183,500.0,0.000229,2]
[390922895,1760220703419,505.89,0.000229,2]
[390922896,1760220704234,500.0,0.00022871,2]
[390922897,1760220704471,500.0,0.00022871,2]
[390922898,1760220704841,500.0,0.000229,2]
[390922899,1760220705074,500.0,0.000229,2]
[390922900,1760220705145,534.45287146,0.00023001,2]
[390922901,1760220705316,371.28,0.000229,2]
[390922902,1760220708332,500.0,0.000229,2]
[390922903,1760220709536,500.0,0.00023001,2]
[390922904,1760220709766,500.27159111,0.00023001,2]
[390922905,1760220710215,500.0,0.000229,2]
[390922906,1760220711551,500.0,0.00023001,2]
[390922907,1760220711785,536.12,0.00023001,2]
[390922908,1760220712094,500.0,0.000229,2]
[390922909,1760220713502,500.0,0.00022872,2]
[390922910,1760220715836,500.0,0.000229,2]
[390922911,1760220716079,500.0,0.000229,2]
[390922912,1760220716325,402.7896683,0.000229,2]
[390922913,1760220719084,500.0,0.00022871,2]
[390922914,1760220719404,500.0,0.00022871,2]
[390922915,1760220719640,480.86938815,0.00022871,2]
[390922916,1760220736528,-500.0,0.00022872,2]
[390922917,1760220736557,-500.0,0.00022872,2]
[390922918,1760220736586,-369.81,0.00022872,2]
[390922919,1760220752608,-500.0,0.00022899,2]
[390922920,1760220752638,-500.0,0.00022899,2]
[390922921,1760220752668,-500.0,0.00022899,2]
[390922922,1760220752698,-500.0,0.00022899,2]
[390922923,1760220752727,-500.0,0.00022899,2]
[390922924,1760220752757,-500.0,0.00022899,2]
[390922925,1760220752788,-500.0,0.00022899,2]
[390922926,1760220752819,-500.0,0.00022899,2]
[390922927,1760220752850,-500.0,0.00022899,2]
[390922928,1760220752882,-500.0,0.00022899,2]
[390922929,1760220753328,-500.0,0.00022899,2]
[390922930,1760220753365,-500.0,0.00022899,2]
[390922931,1760220753399,-500.0,0.00022899,2]
[390922932,1760220753439,-295.4,0.00022899,2]
[390922933,1760220753474,-500.0,0.000229,2]
[390922934,1760220753508,-500.0,0.000229,2]
[390922935,1760220753541,-500.0,0.000229,2]
[390922936,1760220753574,-542.44,0.000229,2]
[390922937,1760220753608,-500.0,0.000229,2]
[390922938,1760220753641,-542.44,0.000229,2]
[390922939,1760220753694,-500.0,0.000229,2]
[390922940,1760220753729,-542.44,0.000229,2]
[390922941,1760220753763,-542.44,0.000229,2]
[390922942,1760220753795,-500.0,0.000229,2]
[390922943,1760220753827,-463.87,0.000229,2]
[390922944,1760220753859,-542.44,0.000229,2]
[390922945,1760220753893,-542.44,0.000229,2]
[390922946,1760220753927,-542.44,0.000229,2]
[390922947,1760220753960,-500.0,0.000229,2]
[390922948,1760220753999,-105.43,0.000229,2]
[390922949,1760220754835,-437.01,0.000229,2]
[390922950,1760220754864,-500.0,0.000229,2]
[390922951,1760220754896,-542.44,0.000229,2]
[390922952,1760220754928,-542.44,0.000229,2]
[390922953,1760220754961,-542.44,0.000229,2]
[390922954,1760220754995,-542.44,0.000229,2]
[390922955,1760220755028,-542.44,0.000229,2]
[390922956,1760220755061,-542.44,0.000229,2]
[390922957,1760220755093,-542.44,0.000229,2]
[390922958,1760220755137,-542.44,0.000229,2]
[390922959,1760220755168,-542.44,0.000229,2]
[390922960,1760220755200,-542.44,0.000229,2]
[390922961,1760220755233,-542.44,0.000229,2]
[390922962,1760220755264,-542.44,0.000229,2]
[390922963,1760220755295,-542.44,0.000229,2]
[390922964,1760220755326,-542.44,0.000229,2]
[390922965,1760220755359,-542.44,0.000229,2]
[390922966,1760220755389,-542.45902806,0.000229,2]
[390922967,1760220756602,-500.0,0.000229,2]
[390922968,1760220756634,-202.44059991,0.000229,2]
[390922969,1760220756671,-500.0,0.000229,2]
[390922970,1760220756702,-587.73,0.000229,2]
[390922971,1760220756736,-500.0,0.000229,2]
[390922972,1760220756766,-500.0,0.000229,2]
[390922973,1760220756797,-500.0,0.000229,2]
[390922974,1760220756828,-500.0,0.000229,2]
[390922975,1760220756860,-500.0,0.000229,2]
[390922976,1760220756891,-540.09,0.000229,2]
[390922977,1760220758644,-500.0,0.000229,2]
[390922978,1760220758675,-150.91,0.000229,2]
[390922979,1760220758707,-500.0,0.000229,2]
[390922980,1760220758736,-526.42,0.00023001,2]
[390922985,1760220777713,-500.0,0.000229,2]
[390922986,1760220777748,-200.89548072,0.000229,2]
[390922987,1760220779136,500.0,0.000229,2]
[390922988,1760220779358,500.0,0.000229,2]
[390922989,1760220779586,500.0,0.00022898,2]
[390922990,1760220779813,500.0,0.00022898,2]
[390922991,1760220780039,500.0,0.00022898,2]
[390922992,1760220780261,500.0,0.00022898,2]
[390922993,1760220780494,500.0,0.00022898,2]
[390922994,1760220780723,500.0,0.00022898,2]
[390922995,1760220781019,500.0,0.00022898,2]
[390922996,1760220781211,500.0,0.00022898,2]
[390922997,1760220781452,500.0,0.00022898,2]
[390922998,1760220781683,500.0,0.00022898,2]
[390922999,1760220781938,500.0,0.00022898,2]
[390923000,1760220782205,500.0,0.00022898,2]
[390923001,1760220782470,237.40276644,0.00022898,2]
[390923002,1760220784705,500.0,0.000229,2]
[390923003,1760220784964,500.0,0.000229,2]
[390923004,1760220785224,500.0,0.000229,2]
[390923005,1760220788164,500.0,0.000229,2]
[390923006,1760220788466,159.85458341,0.000229,2]
[390923007,1760220792540,500.0,0.00022872,2]
[390923008,1760220793357,199.49974719,0.000229,2]
[390923009,1760220811867,-3589.47198825,0.000228,2]
[390923010,1760220811896,-10000.01,0.000228,2]
[390923011,1760220812010,-10000.01,0.000228,2]
[390923012,1760220814732,-10000.01,0.000228,2]
[390923013,1760220814847,-10000.01,0.000228,2]
[390923014,1760220814961,-10000.01,0.000228,2]
[390923015,1760220815098,-10000.01,0.000228,2]
[390923016,1760220816767,-10000.01,0.000228,2]
[390923017,1760220816927,-10000.01,0.000228,2]
[390923018,1760220817080,-10000.01,0.000228,2]
[390923019,1760220817222,-10000.01,0.000228,2]
[390923020,1760220824770,-10000.01,0.000228,2]
[390923021,1760220824899,-10000.01,0.000228,2]
[390923022,1760220828805,-396.9,0.0002279,10]
[390923023,1760220828844,-9206.21,0.000228,2]
[390923024,1760220828930,-10000.01,0.000228,2]
[390923025,1760220835285,5000.0,0.0002259,2]
[390923026,1760220855626,5000.01,0.00022242,2]
[390923027,1760220855649,10000.01,0.00022242,2]
[390923028,1760220855671,10000.01,0.00022242,2]
[390923029,1760220855693,10000.01,0.00022242,2]
[390923030,1760220855714,10000.01,0.00022242,2]
[390923031,1760220855736,10000.01,0.00022242,2]
[390923032,1760220855761,1848.7150696,0.00022242,2]
[390923033,1760220858181,5000.0,0.0002259,2]
[390923034,1760220861352,150.0,0.00021296,2]
[390923035,1760220880558,1666.54116194,0.0002259,2]
[390923036,1760220903511,1334.75376846,0.0002259,2]
[390923037,1760220903540,3665.24623154,0.0002259,2]
[390923038,1760220914219,1673.198006,0.00022017,2]
[390923039,1760220925337,-158.25853081,0.00022772,2]
[390923040,1760220925369,-476.38,0.0002279,10]
[390923041,1760220925401,-396.99,0.0002279,10]
[390923042,1760220925432,-330.82,0.0002279,10]
[390923043,1760220925466,-300.0,0.00022798,2]
[390923044,1760220925503,-300.0,0.00022798,2]
[390923045,1760220925536,-300.0,0.00022798,2]
[390923046,1760220925569,-300.0,0.00022798,2]
[390923047,1760220925601,-300.0,0.00022798,2]
[390923048,1760220925630,-629.97,0.00022799,2]
[390923049,1760220925660,-500.0,0.00022799,2]
[390923050,1760220925689,-500.0,0.00022799,2]
[390923051,1760220925719,-485.10834359,0.00022799,2]
[390923052,1760220926000,-500.0,0.00022799,2]
[390923053,1760220926034,-500.0,0.00022799,2]
[390923054,1760220926069,-500.0,0.00022799,2]
[390923055,1760220926102,-500.0,0.00022799,2]
[390923056,1760220926137,-500.0,0.00022799,2]
[390923057,1760220926172,-500.0,0.00022799,2]
[390923058,1760220926206,-500.0,0.00022799,2]
[390923059,1760220926239,-500.0,0.00022799,2]
[390923060,1760220926272,-500.0,0.00022799,2]
[390923061,1760220926305,-500.0,0.00022799,2]
[390923062,1760220929218,-500.0,0.00022799,2]
[390923063,1760220929252,-500.0,0.00022799,2]
[390923064,1760220929286,-500.0,0.00022799,2]
[390923065,1760220929322,-552.98592568,0.00022799,2]
[390923066,1760220929356,-500.0,0.00022799,2]
[390923067,1760220929390,-500.0,0.00022799,2]
[390923068,1760220929424,-500.0,0.00022799,2]
[390923069,1760220929458,-500.0,0.00022799,2]
[390923070,1760220929495,-500.0,0.00022799,2]
[390923071,1760220929528,-394.03814864,0.00022799,2]
[390923072,1760220933271,-500.0,0.00022799,2]
[390923073,1760220933305,-500.0,0.00022799,2]
[390923074,1760220933342,-395.5708356,0.00022799,2]
[390923075,1760220933377,-105.96185136,0.00022799,2]
[390923076,1760220933413,-447.01407432,0.00022799,2]
[390923077,1760220933445,-392.51832554,0.00022799,2]
[390923078,1760220935250,-150.0,0.00022059,2]
[390923079,1760220935282,-275.68,0.0002279,10]
[390923080,1760221013248,150.0,0.00022065,2]
[390923085,1760221080452,150.0,0.00022067,2]
[390923094,1760221149184,150.0,0.00022142,2]
[390923098,1760221205620,-158.25853078,0.00022699,2]
[390923099,1760221205654,-229.74,0.0002279,10]
[390923100,1760221205687,-191.45,0.0002279,10]
[390923101,1760221205721,-159.54,0.0002279,10]
[390923102,1760221205753,-300.0,0.00022798,2]
[390923103,1760221207805,1200.0,0.00022798,2]
[390923104,1760221208451,797.72,0.0002279,10]
[390923105,1760221218626,150.0,0.00021404,2]
[390923106,1760221234919,200.0,0.00027,120]
[390923107,1760221237774,-500.0,0.00022798,2]
[390923108,1760221237810,-500.0,0.00022798,2]
[390923109,1760221237843,-500.0,0.00022798,2]
[390923110,1760221239263,500.0,0.00022798,2]
[390923111,1760221239504,308.32,0.00022798,2]
[390923112,1760221241459,663.28,0.0002279,10]
[390923113,1760221251859,264.65,0.0002279,10]
[390923114,1760221255967,500.0,0.00022798,2]
[390923115,1760221256560,510.1,0.00022798,2]
[390923116,1760221259966,-3934.94369138,0.00022799,2]
[390923117,1760221261775,-10000.01,0.00022799,2]
[390923118,1760221263323,300.0,0.00022798,2]
[390923119,1760221263791,-2223.15313191,0.00022799,2]
[390923120,1760221263829,-5253.70373618,0.00022799,2]
[390923122,1760221269845,-300.0,0.00022799,2]
[390923123,1760221269878,-500.0,0.00022799,2]
[390923124,1760221269909,-500.0,0.00022799,2]
[390923125,1760221269943,-500.0,0.00022799,2]
[390923126,1760221269976,-500.0,0.00022799,2]
[390923127,1760221270011,-500.0,0.00022799,2]
[390923128,1760221270044,-500.0,0.00022799,2]
[390923129,1760221270077,-500.0,0.00022799,2]
[390923130,1760221270112,-500.0,0.00022799,2]
[390923131,1760221270146,-500.0,0.00022799,2]
[390923132,1760221270494,-400.01,0.00022799,2]
[390923135,1760221284874,-99.99,0.00022799,2]
[390923136,1760221284907,-500.0,0.00022799,2]
[390923137,1760221284940,-500.0,0.00022799,2]
[390923138,1760221284973,-500.0,0.00022799,2]
[390923139,1760221285005,-500.0,0.00022799,2]
[390923140,1760221285036,-500.0,0.00022799,2]
[390923141,1760221285068,-500.0,0.00022799,2]
[390923142,1760221285101,-500.0,0.00022799,2]
[390923143,1760221285133,-500.0,0.00022799,2]
[390923144,1760221285164,-500.0,0.00022799,2]
[390923145,1760221285194,-300.03,0.00022799,2]
[390923146,1760221285411,-199.97,0.00022799,2]
[390923147,1760221286836,-150.0,0.00021354,2]
[390923148,1760221286871,-205.10522659,0.00022599,2]
[390923149,1760221286903,-500.0,0.00022799,2]
[390923150,1760221286936,-635.86,0.00022799,2]
[390923151,1760221286970,-635.86,0.00022799,2]
[390923152,1760221287003,-635.86,0.00022799,2]
[390923153,1760221287038,-635.86,0.00022799,2]
[390923154,1760221287071,-635.86,0.00022799,2]
[390923155,1760221287105,-635.86,0.00022799,2]
[390923156,1760221287138,-23.61954682,0.00022799,2]
[390923157,1760221287325,-612.24045318,0.00022799,2]
[390923159,1760221293683,500.0,0.0002259,2]
[390923162,1760221317001,4500.0,0.0002259,2]
[390923163,1760221344259,174.0,0.00023237,120]
[390923164,1760221345463,174.0,0.00024399,120]
[390923165,1760221356202,150.0,0.00021441,2]
[390923166,1760221402989,190.003109,0.00021796,2]
[390923167,1760221427398,150.0,0.00021427,2]
[390923168,1760221501092,150.0,0.00018892,2]
[390923169,1760221501507,150.0,0.0002061,2]
[390923170,1760221501939,150.0,0.00022327,2]
[390923171,1760221571743,150.0,0.00018925,2]
[390923172,1760221572147,150.0,0.00020646,2]
[390923173,1760221572623,150.0,0.00022366,2]
[390923174,1760221641519,150.0,0.00018925,2]
[390923175,1760221642021,150.0,0.00020645,2]
[390923176,1760221642356,150.0,0.00022366,2]
[390923177,1760221667402,3160.006891,0.00018,2]
[390923178,1760221667433,10000.01,0.00018,2]
[390923179,1760221667463,10000.01,0.00018,2]
[390923180,1760221667491,10000.01,0.00018,2]
[390923181,1760221667518,10000.01,0.00018,2]
[390923182,1760221667547,10000.01,0.00018,2]
[390923183,1760221667575,10000.01,0.00018,2]
[390923184,1760221667602,10000.01,0.00018,2]
[390923185,1760221667629,10000.01,0.00018,2]
[390923186,1760221667656,3451.01534572,0.00018,2]
[390923187,1760221671344,6548.99465428,0.00018,2]
[390923188,1760221671367,3077.25803147,0.00018,2]
[390923189,1760221693734,6946.0,0.00018,2]
[390923190,1760221708939,150.0,0.00019297,2]
[390923191,1760221709342,150.0,0.00021051,2]
[390923192,1760221709808,2754.01,0.00017,2]
[390923193,1760221709835,10000.01,0.00017,2]
[390923194,1760221709860,10000.01,0.00017,2]
[390923195,1760221709886,10000.01,0.00017,2]
[390923196,1760221709914,10000.01,0.00017,2]
[390923197,1760221709939,10000.01,0.00017,2]
[390923198,1760221709964,10000.01,0.00017,2]
[390923199,1760221709991,10000.01,0.00017,2]
[390923200,1760221710018,7095.74127582,0.00017,2]
[390923201,1760221714053,301.26019728,0.00017,2]
[390923202,1760221715171,2603.0085269,0.00018,2]
[390923203,1760221715325,2401.04274462,0.00018,2]
[390923204,1760221716186,1691.652626,0.0002,120]
[390923205,1760221729449,5000.0,0.0002259,2]
[390923206,1760221744811,2598.96725538,0.0002259,2]
[390923207,1760221744837,2401.03274462,0.0002259,2]
[390923208,1760221753237,4464.40816173,0.0002259,2]
[390923214,1760221775568,500.0,0.0002259,2]
[390923215,1760221784468,150.0,0.00020406,2]
[390923216,1760221785459,150.0,0.00022261,2]
[390923230,1760221832084,-150.0,0.00022699,2]
[390923231,1760221832094,-100.8,0.000227,2]
[390923232,1760221837964,-161.88563419,0.00022688,2]
[390923233,1760221837973,-102.16438399,0.000227,2]
[390923234,1760221838059,-461.90302953,0.000227,2]
[390923235,1760221838070,-361.69385993,0.00022773,2]
[390923236,1760221838080,-300.0,0.00022786,2]
[390923237,1760221838089,-1200.0,0.00022786,2]
[390923238,1760221838099,-1200.0,0.00022787,2]
[390923239,1760221838109,-542.1454975,0.00022787,2]
[390923240,1760221838119,-500.0,0.00022787,2]
[390923241,1760221838128,-500.0,0.00022787,2]
[390923242,1760221838138,-300.19467024,0.00022787,2]
[390923243,1760221838147,-500.0,0.00022787,2]
[390923244,1760221838157,-500.0,0.00022787,2]
[390923245,1760221838166,-500.0,0.00022787,2]
[390923246,1760221838176,-500.0,0.00022787,2]
[390923247,1760221838185,-497.67,0.00022787,2]
[390923248,1760221838194,-500.0,0.00022787,2]
[390923250,1760221838204,-500.0,0.00022787,2]
[390923252,1760221838213,-500.0,0.00022787,2]
[390923253,1760221838222,-500.0,0.00022788,2]
[390923254,1760221838231,-500.0,0.00022788,2]
[390923255,1760221838241,-500.0,0.00022788,2]
[390923256,1760221838250,-500.0,0.00022788,2]
[390923257,1760221838259,-511.54,0.00022788,2]
[390923258,1760221838268,-865.04,0.00022788,2]
[390923259,1760221838277,-865.04,0.00022788,2]
[390923260,1760221838286,-865.04,0.00022788,2]
[390923261,1760221838296,-865.04,0.00022788,2]
[390923262,1760221838305,-865.04,0.00022788,2]
[390923263,1760221838316,-865.04,0.00022788,2]
[390923264,1760221838325,-865.04,0.00022788,2]
[390923265,1760221838333,-865.04,0.00022788,2]
[390923266,1760221838342,-865.04,0.00022788,2]
[390923267,1760221838351,-865.04,0.00022788,2]
[390923268,1760221838360,-865.04,0.00022788,2]
[390923269,1760221838369,-865.04,0.00022788,2]
[390923270,1760221838378,-865.04,0.00022788,2]
[390923271,1760221838388,-865.04,0.00022788,2]
[390923272,1760221838397,-865.04,0.00022788,2]
[390923273,1760221838406,-865.04,0.00022788,2]
[390923274,1760221838415,-865.04,0.00022788,2]
[390923275,1760221838425,-865.04,0.00022788,2]
[390923276,1760221838434,-865.04,0.00022788,2]
[390923277,1760221838444,-865.04,0.00022788,2]
[390923278,1760221838453,-865.04,0.00022788,2]
[390923279,1760221838463,-865.04,0.00022788,2]
[390923280,1760221838472,-865.04,0.00022788,2]
[390923281,1760221838481,-865.07865077,0.00022788,2]
[390923282,1760221838491,-500.0,0.00022788,2]
[390923283,1760221838500,-187.65,0.00022788,2]
[390923284,1760221838509,-150.91,0.00022788,2]
[390923285,1760221838519,-500.0,0.00022788,2]
[390923286,1760221838528,-500.0,0.00022788,2]
[390923287,1760221838537,-500.0,0.00022788,2]
[390923288,1760221838546,-500.0,0.00022788,2]
[390923289,1760221838556,-500.0,0.00022788,2]
[390923290,1760221838566,-500.0,0.00022788,2]
[390923291,1760221838575,-500.0,0.00022788,2]
[390923292,1760221838584,-269.9,0.00022788,2]
[390923293,1760221838594,-500.0,0.00022788,2]
[390923294,1760221838603,-500.0,0.00022788,2]
[390923295,1760221838613,-500.0,0.00022788,2]
[390923296,1760221838622,-500.0,0.00022788,2]
[390923297,1760221838632,-577.57,0.00022788,2]
[390923298,1760221838642,-500.0,0.00022788,2]
[390923299,1760221838651,-500.0,0.00022788,2]
[390923300,1760221838661,-452.3,0.00022788,2]
[390923301,1760221838670,-500.0,0.00022788,2]
[390923302,1760221838680,-500.0,0.00022788,2]
[390923303,1760221838689,-500.0,0.00022788,2]
[390923304,1760221838699,-500.0,0.00022788,2]
[390923305,1760221838708,-500.0,0.00022788,2]
[390923306,1760221838720,-500.0,0.00022788,2]
[390923307,1760221838731,-500.0,0.00022788,2]
[390923308,1760221838740,-500.0,0.00022788,2]
[390923309,1760221838750,-500.0,0.00022788,2]
[390923310,1760221838759,-500.0,0.00022788,2]
[390923311,1760221838770,-500.0,0.00022788,2]
[390923312,1760221838780,-276.96,0.00022788,2]
[390923313,1760221838789,-500.0,0.00022788,2]
[390923314,1760221838800,-500.0,0.00022788,2]
[390923315,1760221838809,-500.0,0.00022788,2]
[390923316,1760221838821,-500.0,0.00022788,2]
[390923317,1760221838830,-500.0,0.00022788,2]
[390923319,1760221838840,-500.0,0.00022788,2]
[390923321,1760221838849,-500.0,0.00022788,2]
[390923323,1760221838859,-615.72,0.00022788,2]
[390923325,1760221838868,-500.0,0.00022788,2]
[390923327,1760221838877,-500.0,0.00022788,2]
[390923329,1760221838888,-500.0,0.00022788,2]
[390923331,1760221838898,-640.14,0.00022788,2]
[390923333,1760221838907,-500.0,0.00022788,2]
[390923335,1760221838917,-500.0,0.00022788,2]
[390923337,1760221838926,-529.37,0.00022788,2]
[390923339,1760221838936,-500.0,0.00022788,2]
[390923341,1760221838945,-500.0,0.00022788,2]
[390923343,1760221838954,-500.0,0.00022788,2]
[390923345,1760221838963,-500.0,0.00022788,2]
[390923347,1760221838973,-500.0,0.00022788,2]
[390923349,1760221838982,-500.0,0.00022788,2]
[390923351,1760221838991,-500.0,0.00022788,2]
[390923353,1760221839000,-320.97,0.00022788,2]
[390923355,1760221839012,-500.0,0.00022788,2]
[390923357,1760221839021,-500.0,0.00022788,2]
[390923359,1760221839031,-500.0,0.00022788,2]
[390923361,1760221839041,-500.0,0.00022788,2]
[390923363,1760221839051,-500.0,0.00022788,2]
[390923365,1760221839060,-500.0,0.00022788,2]
[390923367,1760221839071,-499.24,0.00022788,2]
[390923369,1760221839081,-500.0,0.00022788,2]
[390923371,1760221839091,-500.0,0.00022788,2]
[390923373,1760221839100,-500.0,0.00022788,2]
[390923375,1760221839109,-500.0,0.00022788,2]
[390923377,1760221839118,-500.0,0.00022788,2]
[390923379,1760221839127,-500.0,0.00022788,2]
[390923381,1760221839137,-500.0,0.00022788,2]
[390923383,1760221839146,-500.0,0.00022788,2]
[390923384,1760221839155,-500.0,0.00022788,2]
[390923385,1760221839165,-500.0,0.00022788,2]
[390923386,1760221839174,-500.0,0.00022788,2]
[390923387,1760221839184,-500.0,0.00022788,2]
[390923388,1760221839195,-500.0,0.00022788,2]
[390923390,1760221839205,-500.0,0.00022788,2]
[390923391,1760221839215,-500.0,0.00022788,2]
[390923392,1760221839225,-287.83,0.00022788,2]
[390923393,1760221839235,-500.0,0.00022788,2]
[390923394,1760221839245,-557.66,0.00022788,2]
[390923395,1760221839254,-500.0,0.00022788,2]
[390923396,1760221839265,-500.0,0.00022788,2]
[390923397,1760221839275,-500.0,0.00022788,2]
[390923398,1760221839284,-500.0,0.00022788,2]
[390923399,1760221839294,-500.0,0.00022788,2]
[390923400,1760221839303,-500.0,0.00022788,2]
[390923401,1760221839314,-482.12,0.00022788,2]
[390923402,1760221839325,-500.0,0.00022788,2]
[390923403,1760221839335,-500.0,0.00022788,2]
[390923404,1760221839344,-500.0,0.00022788,2]
[390923405,1760221839355,-500.0,0.00022788,2]
[390923406,1760221839364,-500.0,0.00022788,2]
[390923407,1760221839374,-500.0,0.00022788,2]
[390923408,1760221839384,-500.0,0.00022788,2]
[390923409,1760221839394,-500.0,0.00022788,2]
[390923410,1760221839403,-500.0,0.00022788,2]
[390923411,1760221839413,-500.0,0.00022788,2]
[390923412,1760221839423,-500.0,0.00022788,2]
[390923413,1760221839432,-500.0,0.00022788,2]
[390923414,1760221839441,-618.64,0.00022788,2]
[390923415,1760221839451,-500.0,0.00022788,2]
[390923416,1760221839460,-500.0,0.00022788,2]
[390923417,1760221839469,-584.34,0.00022788,2]
[390923418,1760221839479,-500.0,0.00022788,2]
[390923419,1760221839488,-500.0,0.00022788,2]
[390923420,1760221839497,-500.0,0.00022788,2]
[390923421,1760221839506,-500.0,0.00022788,2]
[390923422,1760221839515,-500.0,0.00022788,2]
[390923423,1760221839524,-500.0,0.00022788,2]
[390923424,1760221839534,-500.0,0.00022788,2]
[390923425,1760221839543,-500.0,0.00022788,2]
[390923426,1760221839553,-500.0,0.00022788,2]